fUSD/lending_fUSD_20240318
["ID","MTS","AMOUNT","RATE_DAILY","PERIOD"]
[319492844,1710800962166,-150.0,0.00017616,2]
[319492845,1710800962186,-150.0,0.00017616,2]
[319492846,1710800962209,-815.81239101,0.00017617,2]
[319492852,1710801031866,-23084.18760899,0.00017617,2]
[319492853,1710801031876,-435.64,0.0001764,2]
[319492854,1710801031886,-614.49,0.00017644,2]
[319492855,1710801031896,-773.62,0.00017681,2]
[319492856,1710801031907,-250.0,0.00017696,2]
[319492857,1710801031921,-351.6856935,0.00017717,2]
[319492858,1710801031931,-150.0,0.0001772,2]
[319492859,1710801031940,-150.99,0.0001772,2]
[319492860,1710801031951,-174.19,0.0001772,4]
[319492861,1710801031960,-200.0,0.00017726,2]
[319492862,1710801031971,-159.79,0.00017822,2]
[319492863,1710801031981,-351.6856935,0.00018009,2]
[319492864,1710801031990,-175.02,0.00018144,2]
[319492865,1710801032000,-200.0,0.00018232,2]
[319492866,1710801032010,-500.0,0.00018241,2]
[319492867,1710801032020,-351.6856935,0.000183,2]
[319492868,1710801032030,-3327.92568913,0.00018345,2]
[319492869,1710801032040,-199.72,0.00018355,2]
[319492870,1710801032049,-1548.19,0.00018355,2]
[319492871,1710801032058,-1000.0,0.00018421,2]
[319492872,1710801032068,-351.6856935,0.00018592,2]
[319492873,1710801032077,-236.28751008,0.00018607,2]
[319492886,1710801032335,-39958.72,0.00018608,2]
[319492887,1710801032345,-607.08,0.00018608,2]
[319492888,1710801032355,-476.65,0.00018639,2]
[319492889,1710801032364,-476.65,0.0001869,2]
[319492890,1710801032373,-150.0,0.0001872,2]
[319492891,1710801032383,-476.65,0.00018741,2]
[319492892,1710801032392,-476.65,0.00018792,2]
[319492894,1710801032402,-476.65,0.00018844,2]
[319492896,1710801032411,-351.6856935,0.00018884,2]
[319492898,1710801032420,-476.65,0.00018895,2]
[319492900,1710801032429,-476.65,0.00018946,2]
[319492902,1710801032439,-476.65,0.00018997,2]
[319492904,1710801032448,-476.65,0.00019048,2]
[319492906,1710801032457,-224.58,0.00019051,2]
[319492908,1710801032467,-476.65,0.00019099,2]
[319492910,1710801032477,-476.65,0.0001915,2]
[319492912,1710801032486,-351.6856935,0.00019175,2]
[319492914,1710801032496,-500.0,0.00019178,2]
[319492916,1710801032506,-476.65,0.00019201,2]
[319492918,1710801032515,-476.65,0.00019253,2]
[319492920,1710801032526,-1000.0,0.00019275,2]
[319492922,1710801032536,-180.0,0.00019288,2]
[319492924,1710801032545,-476.65,0.00019304,2]
[319492926,1710801032554,-476.65,0.00019355,2]
[319492928,1710801032564,-476.65,0.00019406,2]
[319492930,1710801032573,-476.65,0.00019457,2]
[319492932,1710801032582,-351.6856935,0.00019467,2]
[319492934,1710801032591,-2500.0,0.00019508,2]
[319492936,1710801032601,-476.65,0.00019508,2]
[319492938,1710801032611,-244.50279167,0.00019518,2]
[319492940,1710801032620,-476.65,0.00019559,2]
[319492942,1710801032628,-20277.26330349,0.00019608,2]
[319492944,1710801032640,-2243.50508395,0.00019608,2]
[319492946,1710801032652,-891.15199867,0.00019608,2]
[319492949,1710801032663,-94148.45971389,0.00019608,2]
[319492951,1710801032672,-476.65,0.0001961,2]
[319492952,1710801032682,-453.29305719,0.0001962,2]
[319492954,1710801032692,-150.0,0.0001972,2]
[319492957,1710801032702,-155.13870308,0.00019724,2]
[319492959,1710801032711,-351.6856935,0.00019758,2]
[319492961,1710801032721,-435.64,0.00019904,2]
[319492962,1710801032730,-351.6856935,0.0002005,2]
[319492965,1710801032741,-351.6856935,0.00020342,2]
[319492967,1710801032750,-773.62,0.00020421,2]
[319492969,1710801032760,-232.0,0.00020548,2]
[319492971,1710801032773,-351.6856935,0.00020633,2]
[319492972,1710801032782,-150.0,0.0002072,2]
[319492974,1710801032792,-1000.0,0.00020724,2]
[319492976,1710801032801,-351.6856935,0.00020925,2]
[319492978,1710801032811,-4640.0853,0.00020941,2]
[319492980,1710801032821,-839.0,0.00020941,2]
[319492982,1710801032830,-151.08397819,0.00020955,2]
[319492985,1710801032839,-168.78,0.0002104,2]
[319492986,1710801032849,-171.7,0.0002104,2]
[319492988,1710801032858,-743.16,0.00021096,2]
[319492991,1710801032868,-1971.0,0.00021096,2]
[319492993,1710801032877,-351.6856935,0.00021216,2]
[319492995,1710801032886,-403.49870569,0.00021259,2]
[319492996,1710801032896,-351.6856935,0.00021508,2]
[319492998,1710801032910,-249.54232128,0.0002158,2]
[319493000,1710801032920,-376.93016004,0.000217,2]
[319493002,1710801032929,-606.42913814,0.000217,2]
[319493004,1710801032939,-1000.0,0.00021702,2]
[319493006,1710801032949,-150.0,0.0002172,2]
[319493008,1710801032958,-200.0,0.00021742,2]
[319493010,1710801032967,-232.0,0.00021781,2]
[319493012,1710801032976,-1405.94115628,0.00021798,2]
[319493014,1710801032986,-155.04825908,0.00021799,2]
[319493016,1710801032996,-12445.99811963,0.00021799,2]
[319493018,1710801033006,-351.6856935,0.00021799,2]
[319493020,1710801033016,-181074.93964658,0.000218,5]
[319493023,1710801033028,-816.7049937,0.000218,5]
[319493025,1710801033039,-530.668286,0.000218,5]
[319493028,1710801033063,-3480.32132688,0.000218,5]
[319493170,1710801037927,-673.47728806,0.000218,5]
[319493171,1710801037939,-6600.0,0.000218,5]
[319493172,1710801037951,-91598.16092522,0.000218,5]
[319493173,1710801037961,-1000.0,0.00021817,2]
[319493174,1710801037970,-1000.0,0.00021817,2]
[319493175,1710801037980,-307.06412405,0.00021817,2]
[319493176,1710801037990,-276.60473665,0.00021907,2]
[319493177,1710801037999,-237.29317443,0.00021908,2]
[319493178,1710801038008,-258.33545043,0.00021908,2]
[319493179,1710801038018,-294.02738367,0.00021908,2]
[319493180,1710801038028,-2993.33100195,0.00021915,2]
[319493181,1710801038037,-3034.52909163,0.00021915,2]
[319493182,1710801038046,-193.69327944,0.00021916,2]
[319493183,1710801038055,-500.0,0.00021917,2]
[319493184,1710801038064,-532.16845906,0.00021917,2]
[319493185,1710801038073,-500.0,0.00021917,2]
[319493186,1710801038082,-500.0,0.00021917,2]
[319493187,1710801038092,-500.0,0.00021917,2]
[319493188,1710801038101,-498.85882424,0.00021917,2]
[319493189,1710801038110,-500.18211573,0.00021917,2]
[319493190,1710801038118,-500.0,0.00021917,2]
[319493191,1710801038128,-500.8375952,0.00021917,2]
[319493192,1710801038137,-500.0,0.00021917,2]
[319493193,1710801038146,-500.0,0.00021917,2]
[319493194,1710801038156,-500.0,0.00021917,2]
[319493195,1710801038165,-1450.68,0.00021917,2]
[319493196,1710801038175,-592.1,0.00021917,2]
[319493197,1710801038184,-500.0,0.00021917,2]
[319493198,1710801038193,-500.0,0.00021917,2]
[319493199,1710801038202,-500.0,0.00021917,2]
[319493200,1710801038211,-500.0,0.00021917,2]
[319493203,1710801038219,-1020.92,0.00021917,2]
[319493206,1710801038228,-500.0,0.00021917,2]
[319493209,1710801038238,-500.0,0.00021917,2]
[319493212,1710801038246,-2398.91,0.00021917,2]
[319493214,1710801038255,-500.0,0.00021917,2]
[319493217,1710801038263,-565.0,0.00021917,2]
[319493221,1710801038273,-1256.16,0.00021917,2]
[319493224,1710801038285,-500.0,0.00021917,2]
[319493227,1710801038294,-500.0,0.00021917,2]
[319493229,1710801038303,-500.0,0.00021917,2]
[319493232,1710801038311,-500.0,0.00021917,2]
[319493235,1710801038320,-500.0,0.00021917,2]
[319493237,1710801038329,-500.0,0.00021917,2]
[319493239,1710801038338,-500.0,0.00021917,2]
[319493242,1710801038348,-500.0,0.00021917,2]
[319493245,1710801038357,-500.0,0.00021917,2]
[319493248,1710801038366,-500.0,0.00021917,2]
[319493250,1710801038375,-500.0,0.00021917,2]
[319493253,1710801038384,-500.0,0.00021917,2]
[319493256,1710801038393,-500.0,0.00021917,2]
[319493260,1710801038402,-370.93194159,0.00021917,2]
[319493263,1710801038411,-500.0,0.00021917,2]
[319493265,1710801038420,-500.0,0.00021917,2]
[319493268,1710801038429,-500.0,0.00021917,2]
[319493271,1710801038438,-500.0,0.00021917,2]
[319493274,1710801038447,-500.0,0.00021917,2]
[319493277,1710801038457,-500.0,0.00021917,2]
[319493280,1710801038466,-500.0,0.00021917,2]
[319493284,1710801038475,-813.04,0.00021917,2]
[319493286,1710801038484,-500.0,0.00021917,2]
[319493289,1710801038493,-500.0,0.00021917,2]
[319493292,1710801038502,-500.0,0.00021917,2]
[319493295,1710801038512,-500.0,0.00021917,2]
[319493298,1710801038520,-500.0,0.00021917,2]
[319493301,1710801038531,-500.0,0.00021917,2]
[319493304,1710801038540,-500.0,0.00021917,2]
[319493307,1710801038549,-500.0,0.00021917,2]
[319493310,1710801038558,-500.0,0.00021917,2]
[319493313,1710801038567,-548.69711122,0.00021917,2]
[319493315,1710801038577,-500.0,0.00021917,2]
[319493317,1710801038587,-500.0,0.00021917,2]
[319493320,1710801038597,-868.45,0.00021917,2]
[319493322,1710801038606,-248.08171713,0.00021917,2]
[319493323,1710801038614,-500.0,0.00021917,2]
[319493324,1710801038623,-500.0,0.00021917,2]
[319493325,1710801038632,-2743.09,0.00021917,2]
[319493326,1710801038641,-500.0,0.00021917,2]
[319493327,1710801038650,-500.0,0.00021917,2]
[319493328,1710801038660,-500.0,0.00021917,2]
[319493329,1710801038669,-500.0,0.00021917,2]
[319493330,1710801038679,-607.21,0.00021917,2]
[319493331,1710801038688,-500.0,0.00021917,2]
[319493332,1710801038697,-500.0,0.00021917,2]
[319493333,1710801038706,-500.0,0.00021917,2]
[319493334,1710801038716,-1261.92,0.00021917,2]
[319493335,1710801038726,-500.0,0.00021917,2]
[319493336,1710801038735,-500.0,0.00021917,2]
[319493337,1710801038744,-500.0,0.00021917,2]
[319493338,1710801038753,-336.99805494,0.00021917,2]
[319493339,1710801038762,-1647.35,0.00021917,2]
[319493340,1710801038772,-620.58,0.00021917,2]
[319493341,1710801038782,-500.0,0.00021917,2]
[319493342,1710801038791,-500.0,0.00021917,2]
[319493343,1710801038800,-500.0,0.00021917,2]
[319493344,1710801038810,-500.0,0.00021917,2]
[319493345,1710801038819,-641.83,0.00021917,2]
[319493346,1710801038828,-500.0,0.00021917,2]
[319493347,1710801038837,-500.0,0.00021917,2]
[319493348,1710801038846,-500.0,0.00021917,2]
[319493349,1710801038855,-500.0,0.00021917,2]
[319493350,1710801038864,-191.66,0.00021917,2]
[319493351,1710801038874,-500.0,0.00021917,2]
[319493352,1710801038883,-500.0,0.00021917,2]
[319493353,1710801038892,-506.0,0.00021917,2]
[319493354,1710801038903,-500.0,0.00021917,2]
[319493355,1710801038914,-500.0,0.00021917,2]
[319493356,1710801038923,-500.0,0.00021917,2]
[319493357,1710801038932,-500.0,0.00021917,2]
[319493358,1710801038943,-500.0,0.00021917,2]
[319493359,1710801038952,-559.08,0.00021917,2]
[319493360,1710801038961,-1727.41,0.00021917,2]
[319493361,1710801038970,-500.0,0.00021917,2]
[319493362,1710801038979,-500.0,0.00021917,2]
[319493363,1710801038989,-2000.0,0.00021917,2]
[319493364,1710801038998,-1697.32,0.00021917,2]
[319493365,1710801039007,-500.0,0.00021917,2]
[319493366,1710801039015,-500.0,0.00021917,2]
[319493367,1710801039024,-500.0,0.00021917,2]
[319493368,1710801039035,-515.19,0.00021917,2]
[319493369,1710801039044,-500.0,0.00021917,2]
[319493370,1710801039053,-500.0,0.00021917,2]
[319493371,1710801039062,-500.0,0.00021917,2]
[319493372,1710801039070,-500.0,0.00021917,2]
[319493373,1710801039081,-1310.25,0.00021917,2]
[319493374,1710801039090,-679.29,0.00021917,2]
[319493375,1710801039098,-500.0,0.00021917,2]
[319493376,1710801039108,-500.0,0.00021917,2]
[319493377,1710801039118,-587.64,0.00021917,2]
[319493378,1710801039127,-500.0,0.00021917,2]
[319493379,1710801039136,-740.07,0.00021917,2]
[319493380,1710801039145,-500.0,0.00021917,2]
[319493381,1710801039154,-500.0,0.00021917,2]
[319493382,1710801039163,-500.0,0.00021917,2]
[319493383,1710801039172,-500.0,0.00021917,2]
[319493384,1710801039180,-500.0,0.00021917,2]
[319493385,1710801039189,-500.0,0.00021917,2]
[319493386,1710801039198,-542.58,0.00021917,2]
[319493387,1710801039207,-3137.35,0.00021917,2]
[319493388,1710801039216,-500.0,0.00021917,2]
[319493389,1710801039224,-500.0,0.00021917,2]
[319493390,1710801039233,-500.0,0.00021917,2]
[319493391,1710801039243,-500.0,0.00021917,2]
[319493392,1710801039252,-548.82,0.00021917,2]
[319493393,1710801039261,-500.0,0.00021917,2]
[319493394,1710801039270,-500.0,0.00021917,2]
[319493395,1710801039279,-500.0,0.00021917,2]
[319493396,1710801039288,-500.0,0.00021917,2]
[319493397,1710801039297,-500.0,0.00021917,2]
[319493398,1710801039306,-500.0,0.00021917,2]
[319493399,1710801039315,-500.0,0.00021917,2]
[319493400,1710801039324,-500.0,0.00021917,2]
[319493401,1710801039333,-500.0,0.00021917,2]
[319493402,1710801039342,-3702.32,0.00021917,2]
[319493403,1710801039351,-1755.98,0.00021917,2]
[319493404,1710801039361,-500.0,0.00021917,2]
[319493405,1710801039370,-500.0,0.00021917,2]
[319493406,1710801039379,-512.55,0.00021917,2]
[319493407,1710801039388,-500.0,0.00021917,2]
[319493408,1710801039397,-633.49,0.00021917,2]
[319493409,1710801039406,-500.0,0.00021917,2]
[319493410,1710801039414,-688.74,0.00021917,2]
[319493411,1710801039423,-1528.62,0.00021917,2]
[319493412,1710801039432,-500.0,0.00021917,2]
[319493413,1710801039441,-1077.35,0.00021917,2]
[319493414,1710801039450,-3173.6,0.00021917,2]
[319493415,1710801039460,-500.0,0.00021917,2]
[319493416,1710801039468,-1649.19,0.00021917,2]
[319493417,1710801039477,-500.0,0.00021917,2]
[319493418,1710801039486,-553.06,0.00021917,2]
[319493419,1710801039495,-500.0,0.00021917,2]
[319493420,1710801039504,-500.0,0.00021917,2]
[319493421,1710801039513,-4842.31,0.00021917,2]
[319493422,1710801039522,-500.0,0.00021917,2]
[319493423,1710801039535,-500.0,0.00021917,2]
[319493424,1710801039544,-500.0,0.00021917,2]
[319493425,1710801039554,-500.0,0.00021917,2]
[319493426,1710801039564,-1767.83,0.00021917,2]
[319493427,1710801039572,-500.0,0.00021917,2]
[319493428,1710801039581,-500.0,0.00021917,2]
[319493429,1710801039590,-282.30227937,0.00021917,2]
[319493430,1710801039599,-589.57,0.00021917,2]
[319493431,1710801039608,-500.0,0.00021917,2]
[319493432,1710801039617,-526.71,0.00021917,2]
[319493433,1710801039626,-5762.66,0.00021917,2]
[319493434,1710801039635,-500.0,0.00021917,2]
[319493435,1710801039644,-500.0,0.00021917,2]
[319493436,1710801039653,-500.0,0.00021917,2]
[319493437,1710801039662,-500.0,0.00021917,2]
[319493438,1710801039673,-1538.72,0.00021917,2]
[319493439,1710801039682,-500.0,0.00021917,2]
[319493440,1710801039691,-500.0,0.00021917,2]
[319493441,1710801039700,-1121.93,0.00021917,2]
[319493442,1710801039709,-646.66,0.00021917,2]
[319493443,1710801039718,-8657.42,0.00021917,2]
[319493444,1710801039727,-500.0,0.00021917,2]
[319493446,1710801039736,-500.0,0.00021917,2]
[319493447,1710801039746,-2138.49,0.00021917,2]
[319493449,1710801039755,-500.0,0.00021917,2]
[319493452,1710801039765,-500.0,0.00021917,2]
[319493454,1710801039774,-500.0,0.00021917,2]
[319493455,1710801039785,-545.38,0.00021917,2]
[319493456,1710801039794,-500.0,0.00021917,2]
[319493457,1710801039803,-500.0,0.00021917,2]
[319493458,1710801039814,-2446.39,0.00021917,2]
[319493459,1710801039823,-526.87,0.00021917,2]
[319493460,1710801039833,-500.0,0.00021917,2]
[319493461,1710801039843,-1107.25,0.00021917,2]
[319493462,1710801039853,-772.83,0.00021917,2]
[319493463,1710801039862,-500.0,0.00021917,2]
[319493464,1710801039871,-500.0,0.00021917,2]
[319493465,1710801039880,-958.79,0.00021917,2]
[319493466,1710801039890,-500.0,0.00021917,2]
[319493467,1710801039899,-500.0,0.00021917,2]
[319493468,1710801039908,-500.0,0.00021917,2]
[319493469,1710801039921,-914.46,0.00021917,2]
[319493470,1710801039932,-500.0,0.00021917,2]
[319493471,1710801039941,-500.0,0.00021917,2]
[319493472,1710801039950,-3034.02,0.00021917,2]
[319493473,1710801039959,-500.0,0.00021917,2]
[319493474,1710801039969,-741.66,0.00021917,2]
[319493475,1710801039978,-500.0,0.00021917,2]
[319493476,1710801039987,-592.52,0.00021917,2]
[319493477,1710801039996,-974.89,0.00021917,2]
[319493478,1710801040006,-1719.57,0.00021917,2]
[319493479,1710801040015,-500.0,0.00021917,2]
[319493480,1710801040023,-3885.21,0.00021917,2]
[319493481,1710801040033,-500.0,0.00021917,2]
[319493482,1710801040043,-500.0,0.00021917,2]
[319493483,1710801040052,-500.0,0.00021917,2]
[319493484,1710801040060,-500.0,0.00021917,2]
[319493485,1710801040069,-500.0,0.00021917,2]
[319493486,1710801040078,-500.0,0.00021917,2]
[319493487,1710801040087,-500.0,0.00021917,2]
[319493488,1710801040097,-500.0,0.00021917,2]
[319493489,1710801040106,-1127.08,0.00021917,2]
[319493490,1710801040115,-1695.2,0.00021917,2]
[319493491,1710801040124,-500.0,0.00021917,2]
[319493492,1710801040133,-1666.58,0.00021917,2]
[319493493,1710801040142,-500.0,0.00021917,2]
[319493494,1710801040151,-617.27741866,0.00021917,2]
[319493495,1710801040160,-500.0,0.00021917,2]
[319493496,1710801040171,-505.38387008,0.00021917,2]
[319493497,1710801040182,-500.0,0.00021917,2]
[319493499,1710801040192,-500.0,0.00021917,2]
[319493500,1710801040202,-500.0,0.00021917,2]
[319493501,1710801040213,-500.0,0.00021917,2]
[319493502,1710801040223,-3896.24,0.00021917,2]
[319493503,1710801040238,-500.0,0.00021917,2]
[319493505,1710801040248,-500.0,0.00021917,2]
[319493507,1710801040259,-543.8296803,0.00021917,2]
[319493508,1710801040269,-500.0,0.00021917,2]
[319493509,1710801040281,-500.0,0.00021917,2]
[319493510,1710801040291,-500.0,0.00021917,2]
[319493511,1710801040301,-500.0,0.00021917,2]
[319493512,1710801040312,-500.0,0.00021917,2]
[319493513,1710801040322,-1780.73,0.00021917,2]
[319493514,1710801040333,-500.0,0.00021917,2]
[319493515,1710801040344,-500.0,0.00021917,2]
[319493516,1710801040355,-500.0,0.00021917,2]
[319493517,1710801040366,-500.0,0.00021917,2]
[319493518,1710801040376,-3745.04,0.00021917,2]
[319493519,1710801040387,-500.0,0.00021917,2]
[319493520,1710801040398,-991.09,0.00021917,2]
[319493521,1710801040408,-500.0,0.00021917,2]
[319493522,1710801040419,-500.0,0.00021917,2]
[319493523,1710801040429,-500.0,0.00021917,2]
[319493524,1710801040439,-500.0,0.00021917,2]
[319493525,1710801040450,-2989.78,0.00021917,2]
[319493526,1710801040461,-500.0,0.00021917,2]
[319493527,1710801040472,-500.0,0.00021917,2]
[319493528,1710801040482,-3632.16,0.00021917,2]
[319493529,1710801040497,-859.46,0.00021918,10]
[319493530,1710801040508,-250.0,0.00021918,2]
[319493531,1710801040518,-155.0,0.00021918,2]
[319493532,1710801040530,-500.0,0.00021984,2]
[319493533,1710801040541,-453.29305714,0.00021984,2]
[319493534,1710801040552,-4760.0,0.00021985,2]
[319493535,1710801040563,-572.145,0.00021985,2]
[319493536,1710801040574,-5666.0,0.00021985,2]
[319493537,1710801040584,-2427.0,0.00021985,2]
[319493538,1710801040594,-42872.0,0.00021985,2]
[319493539,1710801040603,-383.982,0.00021985,2]
[319493540,1710801040613,-779.74941329,0.00022,2]
[319493541,1710801040623,-7500.0,0.00022091,2]
[319493542,1710801040633,-351.6856935,0.00022091,2]
[319493543,1710801040644,-435.64,0.00022168,2]
[319493544,1710801040655,-500.0,0.00022191,2]
[319493545,1710801040666,-500.0,0.00022191,2]
[319493546,1710801040677,-500.0,0.00022191,2]
[319493547,1710801040689,-500.0,0.00022191,2]
[319493548,1710801040699,-500.0,0.00022191,2]
[319493549,1710801040709,-183.57898101,0.00022191,2]
[319493550,1710801040720,-500.0,0.00022191,2]
[319493551,1710801040730,-500.0,0.00022191,2]
[319493552,1710801040741,-1450.68,0.00022191,2]
[319493553,1710801040751,-592.1,0.00022191,2]
[319493554,1710801040762,-500.0,0.00022191,2]
[319493555,1710801040772,-500.0,0.00022191,2]
[319493556,1710801040784,-500.0,0.00022191,2]
[319493557,1710801040794,-500.0,0.00022191,2]
[319493558,1710801040804,-1020.92,0.00022191,2]
[319493559,1710801040815,-500.0,0.00022191,2]
[319493560,1710801040825,-2398.91,0.00022191,2]
[319493561,1710801040836,-500.0,0.00022191,2]
[319493562,1710801040847,-565.0,0.00022191,2]
[319493563,1710801040858,-1256.16,0.00022191,2]
[319493564,1710801040868,-500.0,0.00022191,2]
[319493565,1710801040879,-500.0,0.00022191,2]
[319493566,1710801040890,-464.09465265,0.00022191,2]
[319493567,1710801040900,-500.0,0.00022191,2]
[319493568,1710801040913,-500.0,0.00022191,2]
[319493569,1710801040922,-500.0,0.00022191,2]
[319493570,1710801040935,-500.0,0.00022191,2]
[319493571,1710801040946,-500.0,0.00022191,2]
[319493572,1710801040956,-500.0,0.00022191,2]
[319493573,1710801040966,-500.0,0.00022191,2]
[319493574,1710801040977,-500.0,0.00022191,2]
[319493575,1710801040989,-500.0,0.00022191,2]
[319493576,1710801041001,-529.24,0.00022191,2]
[319493577,1710801041012,-813.04,0.00022191,2]
[319493578,1710801041022,-500.0,0.00022191,2]
[319493579,1710801041033,-500.0,0.00022191,2]
[319493580,1710801041044,-500.0,0.00022191,2]
[319493581,1710801041054,-500.0,0.00022191,2]
[319493582,1710801041064,-500.0,0.00022191,2]
[319493583,1710801041075,-500.0,0.00022191,2]
[319493584,1710801041089,-500.0,0.00022191,2]
[319493585,1710801041099,-500.0,0.00022191,2]
[319493586,1710801041110,-500.0,0.00022191,2]
[319493587,1710801041120,-868.45,0.00022191,2]
[319493588,1710801041131,-500.0,0.00022191,2]
[319493589,1710801041142,-500.0,0.00022191,2]
[319493590,1710801041152,-2743.09,0.00022191,2]
[319493591,1710801041162,-500.0,0.00022191,2]
[319493592,1710801041173,-500.0,0.00022191,2]
[319493593,1710801041182,-500.0,0.00022191,2]
[319493594,1710801041192,-500.0,0.00022191,2]
[319493595,1710801041204,-500.0,0.00022191,2]
[319493596,1710801041214,-1261.92,0.00022191,2]
[319493597,1710801041225,-500.0,0.00022191,2]
[319493598,1710801041235,-345.83,0.00022191,2]
[319493599,1710801041245,-500.0,0.00022191,2]
[319493600,1710801041255,-1647.35,0.00022191,2]
[319493601,1710801041265,-620.58,0.00022191,2]
[319493602,1710801041276,-500.0,0.00022191,2]
[319493603,1710801041288,-500.0,0.00022191,2]
[319493604,1710801041298,-500.0,0.00022191,2]
[319493605,1710801041308,-500.0,0.00022191,2]
[319493606,1710801041319,-641.83,0.00022191,2]
[319493607,1710801041330,-500.0,0.00022191,2]
[319493608,1710801041340,-171.0,0.00022191,2]
[319493609,1710801041351,-570.77,0.00022191,2]
[319493610,1710801041362,-500.0,0.00022191,2]
[319493611,1710801041372,-500.0,0.00022191,2]
[319493612,1710801041383,-288.44,0.00022191,2]
[319493613,1710801041393,-1727.41,0.00022191,2]
[319493614,1710801041403,-500.0,0.00022191,2]
[319493615,1710801041414,-834.31080661,0.00022191,2]
[319493616,1710801041424,-1697.32,0.00022191,2]
[319493617,1710801041435,-222.17,0.00022191,2]
[319493618,1710801041446,-500.0,0.00022191,2]
[319493619,1710801041457,-500.41299466,0.00022191,2]
[319493620,1710801041468,-500.0,0.00022191,2]
[319493621,1710801041479,-500.0,0.00022191,2]
[319493622,1710801041490,-1310.25,0.00022191,2]
[319493623,1710801041501,-679.29,0.00022191,2]
[319493624,1710801041513,-500.0,0.00022191,2]
[319493625,1710801041526,-500.0,0.00022191,2]
[319493626,1710801041544,-740.07,0.00022191,2]
[319493627,1710801041555,-500.0,0.00022191,2]
[319493628,1710801041567,-500.0,0.00022191,2]
[319493629,1710801041578,-500.0,0.00022191,2]
[319493630,1710801041589,-500.0,0.00022191,2]
[319493631,1710801041601,-500.0,0.00022191,2]
[319493632,1710801041613,-500.0,0.00022191,2]
[319493633,1710801041624,-542.58,0.00022191,2]
[319493634,1710801041636,-3137.35,0.00022191,2]
[319493635,1710801041648,-500.0,0.00022191,2]
[319493636,1710801041661,-500.0,0.00022191,2]
[319493637,1710801041673,-500.0,0.00022191,2]
[319493638,1710801041684,-548.82,0.00022191,2]
[319493639,1710801041696,-500.0,0.00022191,2]
[319493640,1710801041708,-500.0,0.00022191,2]
[319493641,1710801041719,-500.0,0.00022191,2]
[319493642,1710801041730,-500.0,0.00022191,2]
[319493643,1710801041742,-500.0,0.00022191,2]
[319493644,1710801041754,-500.0,0.00022191,2]
[319493645,1710801041776,-500.0,0.00022191,2]
[319493646,1710801041797,-500.0,0.00022191,2]
[319493647,1710801041810,-500.0,0.00022191,2]
[319493648,1710801041821,-3702.32,0.00022191,2]
[319493649,1710801041831,-1755.98,0.00022191,2]
[319493650,1710801041842,-500.0,0.00022191,2]
[319493651,1710801041851,-500.0,0.00022191,2]
[319493652,1710801041861,-512.55,0.00022191,2]
[319493653,1710801041871,-500.0,0.00022191,2]
[319493654,1710801041881,-633.49,0.00022191,2]
[319493655,1710801041891,-500.0,0.00022191,2]
[319493656,1710801041902,-688.74,0.00022191,2]
[319493657,1710801041912,-1528.62,0.00022191,2]